Cogmind - Beta 17.1 @@@ ROGUE MODE // 2026.09.22 @ 03:05:55 Player: Somberlain Result: Destroyed by P-60 Hacker with Shock Rifle Performance ------------- Evolutions (2) 1000 Regions Visited (6) 1200 Robots Destroyed (121) 605 Value Destroyed (4469) 4469 Prototype IDs (8) 160 Alien Tech Used (0) 0 Bonus (2408) 2408 TOTAL SCORE: 9842 Bonus ------- High Alert Combat Kills 445 Follower Combat Kills 563 Entered Garrisons 400 Used RIF Installer 1000 Cogmind --------- Core Integrity 0/550 Matter 300/300 Energy 110/150 System Corruption 2% Temperature Warm (144) Movement Hovering (106) Ox1 Location -8/Garrison Parts ------- > --- POWER (1) -------- Micro Nuclear Core > --- PROPULSION (3) --- Improved Gravmag System Gravmag Array > --- UTILITY (5) ------ Improved Cooling System Large Storage Unit Hacking Suite Hacking Suite > --- WEAPON (2) ------- Gatling Laser Gatling Laser > --- INVENTORY (15) --- Fission Core Relay Coupler [NC] (29) Relay Coupler [Cutter] (22) Relay Coupler [Grunt] (27) Relay Coupler [Brawler] (42) Relay Coupler [Duelist] (37) Relay Coupler [Sentry] (21) Relay Coupler [Sentry] (22) Relay Coupler [Specialist] (17) Relay Coupler [Heavy] (14) Remote Datajack Plasma Cutter Power Maul Peak State ------------ > --- POWER ------------ Fission Core > --- PROPULSION ------- Improved Gravmag System Gravmag Array > --- UTILITY ---------- Large Storage Unit Advanced Targeting Computer Hacking Suite Hacking Suite Relay Coupler [Specialist] > --- WEAPON ----------- Remote Datajack Power Maul > --- INVENTORY -------- Heat Sink Core Analyzer Relay Coupler [NC] Relay Coupler [Swarmer] Relay Coupler [Grunt] Relay Coupler [Duelist] Relay Coupler [Specialist] Relay Coupler [Heavy] System Restoration Module Gatling Laser Gatling Laser Rocket Launcher Rocket Launcher Plasma Cutter [Rating: 47] Favorites ----------- Power Improved Ion Engine Engine Improved Ion Engine Power Core Micro Nuclear Core Propulsion Light Treads Treads Light Treads Leg Aluminum Leg Hover Unit Improved Gravmag System Utility Hacking Suite Device Improved Heat Sink Storage Large Storage Unit Processor Advanced Targeting Computer Hackware Hacking Suite Weapon Precision Beam Rifle Energy Gun Precision Beam Rifle Energy Cannon Advanced Beam Cannon Ballistic Gun Assault Rifle Launcher Rocket Launcher Special Weapon Remote Datajack Impact Weapon Power Maul Slashing Weapon Mining Claw Build | -11 -10 -9 -8 -8 -8 -8 ------- Run | Yrd Mat Mat Mat Gar Mat Gar Slots Evolved 4 | . . 2 2 . . . Power . | . . . . . . . Propulsion 1 | . . . 1 . . . Utility 3 | . . 2 1 . . . Weapon . | . . . . . . . Parts Attached 83 | 6 6 17 20 27 2 5 Power 13 | 1 2 2 4 4 . . Engine 10 | 1 2 2 3 2 . . Core 3 | . . . 1 2 . . Reactor . | . . . . . . . Propulsion 24 | 2 1 3 7 11 . . Treads 10 | 2 1 3 4 . . . Leg 12 | . . . 3 9 . . Wheel . | . . . . . . . Hover 2 | . . . . 2 . . Flight . | . . . . . . . Utility 22 | 1 2 4 3 5 2 5 Device 6 | . 1 1 1 2 . 1 Storage 4 | 1 1 1 . . 1 . Processor 2 | . . 1 1 . . . Hackware 10 | . . 1 1 3 1 4 Protection . | . . . . . . . Artifact . | . . . . . . . Weapon 24 | 2 1 8 6 7 . . Energy Gun 14 | 1 1 5 4 3 . . Energy Cannon 1 | . . 1 . . . . Ballistic Gun 3 | 1 . 1 1 . . . Ballistic Cannon . | . . . . . . . Launcher 2 | . . 1 1 . . . Special Weapon 2 | . . . . 2 . . Impact Weapon 1 | . . . . 1 . . Slashing Weapon 1 | . . . . 1 . . Piercing Weapon . | . . . . . . . Special Melee Weapon . | . . . . . . . Unidentified Prototypes 6 | . . 4 2 . . . Parts Lost 18 | . . 4 8 4 . 2 Power 3 | . . 1 1 1 . . Propulsion 4 | . . . 3 1 . . Utility 5 | . . 1 1 1 . 2 Weapon 6 | . . 2 3 1 . . Highest Loss Streak 4 | . . 3 4 2 . 1 To Critical Strikes . | . . . . . . . Average Backups 12 | 1 5 10 10 14 14 13 Power . | . . 1 . . 1 1 Propulsion 1 | 1 2 2 . . . . Utility 4 | . . . . 7 10 9 Weapon 4 | . 1 4 7 4 2 1 Tool/Special . | . . . . . . . Unused Backups 28 | . 1 1 2 13 . 11 Power 2 | . 1 . . 1 . . Propulsion 2 | . . . . 2 . . Utility 16 | . . . 1 6 . 9 Weapon 4 | . . 1 1 2 . . Tool/Special 4 | . . . . 2 . 2 Average Slot Usage (%) 89 | . 92 85 93 92 81 85 Engine 6 | . 14 10 5 4 . . Core 3 | . . . 3 4 9 9 Treads 10 | . 28 22 10 2 . . Leg 7 | . . . 13 13 . . Hover 4 | . . . . 6 18 18 Device 5 | . 6 6 9 4 . 2 Storage 9 | . 14 11 9 9 9 9 Processor 7 | . . 6 12 9 9 4 Hackware 14 | . . 6 10 21 20 25 Energy Gun 12 | . 20 17 16 8 . 9 Ballistic Gun 1 | . 7 4 1 . . . Special Weapon 1 | . . . . 2 9 4 Impact Weapon 2 | . . . . 4 6 3 Peak Build Rating 47 | 6 12 18 32 47 45 46 Average Rating 27 | 4 8 13 24 37 41 43 On Entrance 21 | . 6 12 18 32 45 38 Avg Prop Armor Cover (%) 12 | 35 . . 6 . . . Naked Turns . | . . . . . . . Heaviest Build 39 | 12 33 34 35 39 32 36 Greatest Support 63 | 40 40 43 63 63 30 30 Greatest Overweight (x) 3 | . . . 2 3 1 1 Average Overweight (x) . | . . . . . . . Largest Inventory Capacity 15 | 8 15 15 15 15 15 15 Average Capacity 14 | 6 10 15 15 15 15 15 Most Carried 15 | 2 10 13 14 15 15 15 Average Carried 12 | 1 5 10 10 14 14 13 Final Capacity 15 | 8 15 15 15 15 15 15 Final Carried 15 | 2 10 13 14 15 15 13 Class Distribution -------------------- 38% | Mutant 30% | Bothacker-Mutant 17% | Scavenger-Mutant 14% | Hacker-Mutant Dominant Class ---------------- Mutant | -10/Materials Mutant | -9/Materials Scavenger-Mutant | -8/Materials Bothacker-Mutant | -8/Garrison Bothacker-Mutant | -8/Materials Bothacker-Mutant | -8/Garrison Resources | -11 -10 -9 -8 -8 -8 -8 ----------- Run | Yrd Mat Mat Mat Gar Mat Gar Matter Collected 1808 | 218 130 355 287 568 75 175 Remotely . | . . . . . . . Salvage Created 3845 | . 401 1047 1157 1013 49 178 Parts 225 | . 26 74 56 60 . 9 Haulers Intercepted 6 | . 1 2 2 . 1 . Recyclers Shooed 1 | . . . 1 . . . Parts Field Recycled . | . . . . . . . Retrieved Matter . | . . . . . . . Parts Self-Destructed . | . . . . . . . Prevented . | . . . . . . . Parts Restored . | . . . . . . . Kills | -11 -10 -9 -8 -8 -8 -8 ------- Run | Yrd Mat Mat Mat Gar Mat Gar Combat Hostiles Destroyed 95 | . 7 33 23 27 . 5 Guns 80 | . 7 28 17 23 . 5 AOE 12 | . . 4 5 3 . . Classes Destroyed 13 | . 6 2 3 2 . . Worker 5 | . 2 1 2 . . . Builder 4 | . . 2 2 . . . Hauler 6 | . 1 2 2 . 1 . Recycler 3 | . 1 1 1 . . . Operator 1 | . . . 1 . . . Watcher 6 | . 1 2 2 . . 1 Swarmer 42 | . 3 19 8 10 . 2 Grunt 25 | . 4 9 5 7 . . Brawler 1 | . . . 1 . . . Sentry 18 | . . 5 7 5 . 1 Specialist 3 | . . . . 3 . . Hunter 2 | . . . 2 . . . Programmer 4 | . . . . 2 . 2 Thug 1 | . . . . 1 . . Best Kill Streak 12 | . 6 10 12 5 1 3 Combat Bots Only 9 | . 3 7 9 5 . 3 Max Kills in Single Turn 4 | . 1 4 3 3 1 1 Gunslinging . | . . . . . . . Exploded 3 | . . 2 2 3 . . Melee . | . . . . . . . Uniques/NPCs Destroyed . | . . . . . . . Combat | -11 -10 -9 -8 -8 -8 -8 -------- Run | Yrd Mat Mat Mat Gar Mat Gar Hostile Shots Fired 494 | . 35 158 139 129 3 30 Missed 158 | . 12 52 43 40 2 9 Hits 336 | . 23 106 96 89 1 21 Melee 1 | . . . . 1 . . Projectile 335 | . 23 106 96 88 1 21 Critical Strikes 6 | . . 1 2 3 . . Part Disruptions 1 | . . . . . . 1 Damage Taken 3984 | . 262 1103 1215 1109 16 279 Core 817 | . 57 196 222 241 16 85 Absorbed by Shields . | . . . . . . . Regen/Repaired (Parts) 30 | . . 30 . . . . Core Remaining (%) 76 | 100 77 51 . . . . Volleys Fired 294 | . 25 89 70 80 5 25 Largest 2 | . 2 2 2 2 1 2 Hottest 160 | . 115 121 122 122 5 160 Shots Fired 539 | . 50 169 139 135 5 41 Gun 509 | . 50 165 136 126 . 32 Cannon . | . . . . . . . Launcher 10 | . . 4 3 3 . . Special 20 | . . . . 6 5 9 Kinetic 67 | . 16 32 11 8 . . Thermal 415 | . 34 124 107 118 . 32 Explosive 10 | . . 4 3 3 . . Electromagnetic 27 | . . 9 18 . . . Robot Hit Streak 44 | . 11 10 44 30 7 11 Robot Miss Streak 7 | . 2 4 6 4 . 7 Penetration Max 1 | . . . 1 . . . Secondary Targets 11 | . 1 3 4 2 . 1 Max Gunslinging Chain 1 | . 1 1 1 1 . 1 Shots Hit Robots 389 | . 33 116 109 95 7 29 Core Hits 210 | . 18 68 67 47 . 10 Critical Kills . | . . . . . . . Critical Parts Destroyed 3 | . . 1 . 1 1 . Critical Strikes 21 | . . 6 6 8 1 . Burn 18 | . . 5 6 7 . . Destroy 1 | . . 1 . . . . Smash 2 | . . . . 1 1 . Melee Attacks 44 | . . . . 37 3 4 Impact 21 | . . . . 14 3 4 Slashing 23 | . . . . 23 . . Piercing . | . . . . . . . Sneak Attacks 1 | . . . . . 1 . Combat Hostiles . | . . . . . . . Follow-up Attacks . | . . . . . . . Damage Inflicted 7414 | . 488 2149 2284 1871 175 447 Guns 5916 | . 488 1611 1818 1552 . 447 Cannons . | . . . . . . . Explosions 1232 | . . 538 466 228 . . Melee 266 | . . . . 91 175 . Ramming . | . . . . . . . Kinetic 557 | . 116 277 144 20 . . Thermal 5146 | . 372 1263 1532 1532 . 447 Explosive 1173 | . . 538 407 228 . . Electromagnetic 272 | . . 71 201 . . . Impact 266 | . . . . 91 175 . Slashing . | . . . . . . . Piercing . | . . . . . . . Highest Corruption 2 | . . . . 1 1 2 Average Corruption 1 | . . . . 1 1 1 Corruption Purged . | . . . . . . . Corruption Blocked . | . . . . . . . Effects 19 | . . . . 14 2 3 Message Errors 6 | . . . . 6 . . Matter Fused 5 | . . . . 3 2 . Heat Flow Errors 4 | . . . . 3 . 1 Energy Discharges 1 | . . . . . . 1 Data Loss (minor) 2 | . . . . 2 . . Data Loss (major) 1 | . . . . . . 1 Overload Shots . | . . . . . . . Overflow Damage 124 | . . . 15 51 58 . Projectiles . | . . . . . . . Explosions 15 | . . . 15 . . . Melee 109 | . . . . 51 58 . Knockbacks . | . . . . . . . Impact . | . . . . . . . Kinetic . | . . . . . . . Secondary . | . . . . . . . Self-Inflicted Damage 37 | . . . 37 . . . Shots 1 | . . . 1 . . . Rammed . | . . . . . . . Targets Rammed . | . . . . . . . Kicked . | . . . . . . . Crushed . | . . . . . . . Highest Temperature 282 | . 126 105 165 282 . 229 Average Temperature 53 | . 47 25 30 95 . 59 Received Heat Transfer 1191 | . 114 330 333 396 . 18 Siege Activations . | . . . . . . . Martial Activations . | . . . . . . . Shielding Activations . | . . . . . . . Robots Disrupted . | . . . . . . . Combat Hostiles . | . . . . . . . Robots Corrupted 2 | . . . . 1 1 . Combat Hostiles 1 | . . . . 1 . . Parts Fried 4 | . . . . 2 2 . Impact Corruptions 5 | . . . . 2 3 . Robots Melted 2 | . . 1 1 . . . Combat Hostiles 2 | . . 1 1 . . . Parts Melted 42 | . 4 7 14 17 . . Heat Transferred 12498 | . 1036 3473 3420 3644 . 925 Parts Sabotaged 2 | . . . . 2 . . Parts Stolen . | . . . . . . . Parts Stripped . | . . . . . . . Power Chain Reactions 1 | . . . 1 . . . Alert | -11 -10 -9 -8 -8 -8 -8 ------- Run | Yrd Mat Mat Mat Gar Mat Gar Maximum Alert Level 5 | . . 1 1 5 4 3 Low Security (%) 19 | 100 100 35 16 . . . Level 1 33 | . . 64 83 9 . . Level 2 10 | . . . . 18 15 37 Level 3 18 | . . . . 27 64 62 Level 4 9 | . . . . 23 20 . Level 5 7 | . . . . 20 . . High Security . | . . . . . . . Max Security . | . . . . . . . Peak Influence 2340 | . 65 391 376 2340 1169 944 Initial 1140 | . . 2 160 229 1140 491 Average 613 | . 21 213 295 1098 835 753 Influence Increases 5049 | . 209 924 791 2241 191 693 Destroy 0b10 Robot/C 2420 | . 140 660 460 720 80 360 Destroy 0b10 Robot/NC 130 | . 25 40 50 . 10 5 Destroy Leader 384 | . 34 128 138 20 44 20 Allied During Kill 182 | . . . . 48 46 88 Successful Hack 81 | . 10 27 13 17 9 5 Disable Machine 30 | . . . 30 . . . Anti-Garrison Action 1450 | . . . . 1250 . 200 Destroy Structure 252 | . . 24 40 171 2 15 Lose Combat Pursuer 120 | . . 45 60 15 . . Influence Decreases 4115 | . 202 550 819 254 1775 515 Entered New Map 1815 | . . 5 221 124 1200 265 Time Decay 1365 | . 202 495 518 . 150 . Lost Part 180 | . . 40 80 40 . 20 Lost Ally 330 | . . 10 . 90 . 230 Purge Threat 425 | . . . . . 425 . Squads Dispatched 4 | . . 2 1 . 1 . Investigation . | . . . . . . . Extermination . | . . . . . . . Reinforcement 4 | . . 2 1 . 1 . Assault . | . . . . . . . Garrison . | . . . . . . . Intercept . | . . . . . . . Searches Triggered . | . . . . . . . Construction Impeded 1 | . . 1 . . . . Haulers Reinforced . | . . . . . . . Active Scanning Responses . | . . . . . . . Cargo Convoy Interrupts . | . . . . . . . Alert ID Control Effect 3 | . . . . . . 3 Stealth | -11 -10 -9 -8 -8 -8 -8 --------- Run | Yrd Mat Mat Mat Gar Mat Gar Distress Signals 9 | . . 4 4 . 1 . Communications Jammed . | . . . . . . . Distress Signals . | . . . . . . . Times Spotted 169 | . 10 49 36 39 6 29 Peak Tracking Total 9 | . 4 7 9 9 4 4 Tactical Retreats 7 | . . 2 4 1 . . Traps | -11 -10 -9 -8 -8 -8 -8 ------- Run | Yrd Mat Mat Mat Gar Mat Gar Traps Triggered 7 | . . . . 4 . 3 Indirectly . | . . . . . . . Trap Hack Attempts . | . . . . . . . Triggered . | . . . . . . . Disarmed . | . . . . . . . Reprogrammed . | . . . . . . . Reused . | . . . . . . . Traps Extracted . | . . . . . . . Installed . | . . . . . . . Triggered . | . . . . . . . Machines | -11 -10 -9 -8 -8 -8 -8 ---------- Run | Yrd Mat Mat Mat Gar Mat Gar Machines Disabled 10 | . . . 2 6 . 2 Max in Single Turn 1 | . . . 1 1 . 1 Garrison Relay 8 | . . . . 5 . 3 Machines Repaired . | . . . . . . . Machines Dismantled . | . . . . . . . Machines Sabotaged . | . . . . . . . Overloaded Fab Kills . | . . . . . . . Hacking | -11 -10 -9 -8 -8 -8 -8 --------- Run | Yrd Mat Mat Mat Gar Mat Gar Machines Accessed 33 | . 4 9 8 5 4 3 Terminals 27 | . 4 6 6 5 3 3 Fabricators . | . . . . . . . Repair Stations 1 | . . 1 . . . . Recycling Units 1 | . . 1 . . . . Scanalyzers 2 | . . 1 1 . . . Garrison Access 2 | . . . 1 . 1 . Total Hacks 98 | . 13 29 25 7 15 9 Successful 54 | . 4 18 18 5 8 1 Failed 44 | . 9 11 7 2 7 8 Catastrophic 5 | . . . 1 . 1 3 Database Lockouts . | . . . . . . . Manual 71 | . 13 21 15 . 15 7 Terminals 79 | . 13 21 15 7 14 9 Fabricators . | . . . . . . . Repair Stations 4 | . . 4 . . . . Recycling Units 1 | . . 1 . . . . Scanalyzers 12 | . . 3 9 . . . Garrison Access 2 | . . . 1 . 1 . Terminal Hacks 18 | . . 4 2 5 6 1 Robot Analysis 8 | . . 4 2 . 2 . Prototype ID Bank 2 | . . . . . 2 . Open Door 2 | . . . . 1 . 1 Emergency Access Points 1 | . . . . 1 . . Unreport Threat 1 | . . . . . 1 . Recall Reinforcements 1 | . . . . . 1 . Garrison Registry 1 | . . . . 1 . . Patrol Navigation 1 | . . . . 1 . . Security Stations 1 | . . . . 1 . . Fabricator Hacks . | . . . . . . . Repair Station Hacks 3 | . . 3 . . . . Scan Component 2 | . . 2 . . . . Repair 1 | . . 1 . . . . Recycling Unit Hacks 1 | . . 1 . . . . Retrieve Components 1 | . . 1 . . . . Scanalyzer 11 | . . 2 9 . . . Insert Component 3 | . . . 3 . . . Analyze 3 | . . . 3 . . . Retrieve Study 5 | . . 2 3 . . . Garrison Access Hacks 2 | . . . 1 . 1 . Unlock Access 2 | . . . 1 . 1 . Unauthorized Hacks 19 | . 4 8 6 . 1 . Terminals 19 | . 4 8 6 . 1 . Assimilate 3 | . 1 1 1 . . . Botnet 13 | . 3 6 4 . . . Operators 3 | . . 1 1 . 1 . Fabricators . | . . . . . . . Repair Stations . | . . . . . . . Recycling Units . | . . . . . . . Scanalyzers . | . . . . . . . Garrison Access . | . . . . . . . Data Cores Recovered . | . . . . . . . Used . | . . . . . . . Hacking Detections 30 | . 4 9 7 4 4 2 Full Trace Events 2 | . . . . . . 2 Feedback Events 1 | . . . . . . 1 Hackware Fried 1 | . . . . . . 1 Feedback Blocked . | . . . . . . . Robot Schematics Acquired . | . . . . . . . Robots Built . | . . . . . . . Authchips . | . . . . . . . Time . | . . . . . . . Total Robot Build Rating . | . . . . . . . Part Schematics Acquired 2 | . . . 2 . . . Parts Built . | . . . . . . . Authchips . | . . . . . . . Time . | . . . . . . . Total Part Build Rating . | . . . . . . . Part Studies Acquired 5 | . . 2 3 . . . Parts Repaired 1 | . . 1 . . . . Time 32 | . . 32 . . . . Parts Recycled . | . . . . . . . Recycled Matter . | . . . . . . . Retrieved Matter . | . . . . . . . Retrieved Components 10 | . . 10 . . . . Parts Scanalyzed 2 | . . . 2 . . . Part Schematics Acquired 2 | . . . 2 . . . Parts Damaged . | . . . . . . . Bothacking | -11 -10 -9 -8 -8 -8 -8 ------------ Run | Yrd Mat Mat Mat Gar Mat Gar Used RIF Installer 2 | . . . . 1 . 1 Alert ID Control 1 | . . . . . . 1 Robots Hacked 11 | . . . . 3 2 6 Non-combat 1 | . . . . . 1 . Combat 10 | . . . . 3 1 6 Robot Hacks Applied 14 | . . . . 3 5 6 purge_threat 2 | . . . . . 2 . find_garrison 1 | . . . . . 1 . disable_weapons 1 | . . . . . . 1 formatsys_low 1 | . . . . . 1 . formatsys_high 9 | . . . . 3 1 5 Relay Couplers Released 32 | . . . . 21 . 11 Machine Destruction 32 | . . . . 21 . 11 Attached 7 | . . . . 3 1 3 Fabnet Peak Effective % . | . . . . . . . Robots Rewired 9 | . . . . 7 . 2 Allies Hacked 1 | . . . . 1 . . Hacks Repelled . | . . . . . . . Allies | -11 -10 -9 -8 -8 -8 -8 -------- Run | Yrd Mat Mat Mat Gar Mat Gar Total Allies 21 | . 1 . 1 10 2 7 Largest Group 7 | . 1 1 1 5 7 7 Highest-Rated Group 132 | . 10 10 10 126 103 132 Highest-Rated Ally 40 | . 10 10 10 40 16 39 Total Orders 2 | . . . . 2 . . STAY 1 | . . . . 1 . . FOLLOW 1 | . . . . 1 . . Ally Attacks 151 | . . . . 37 22 92 Total Damage 2189 | . . . . 675 284 1230 Kills 31 | . . . . 9 5 17 Allies Corrupted . | . . . . . . . Allies Melted . | . . . . . . . Intel | -11 -10 -9 -8 -8 -8 -8 ------- Run | Yrd Mat Mat Mat Gar Mat Gar Active Infowar (turns) . | . . . . . . . Robot Analysis Total 6 | . . 4 1 . 1 . Derelict Logs Recovered . | . . . . . . . Drone Launches . | . . . . . . . Drone Recoveries . | . . . . . . . Exploration | -11 -10 -9 -8 -8 -8 -8 ------------- Run | Yrd Mat Mat Mat Gar Mat Gar Turns Passed 8543 | 74 611 2162 1430 3191 308 767 Spaces Moved 4902 | 47 316 1076 602 2148 211 502 Core 10 | 10 . . . . . . Treads 1849 | 37 316 1076 282 138 . . Legs 1407 | . . . 320 1087 . . Wheels . | . . . . . . . Hover 1636 | . . . . 923 211 502 Flight . | . . . . . . . Fastest Speed 50 | 50 160 160 120 56 56 56 Average Speed 133 | 136 160 160 173 116 96 100 Slowest Speed 260 | 160 160 160 260 220 106 106 Overloaded Moves . | . . . . . . . Propulsion Burnouts . | . . . . . . . Robots Hopped . | . . . . . . . Potential Cave-ins . | . . . . . . . Cave-ins Triggered . | . . . . . . . Exploration Rate (%) 52 | 4 64 60 51 93 26 66 Regions Visited 6 Branch Regions . Pre-discovered Areas . | . . . . . . . Known Exits Taken 3 | . . 1 1 . 1 . Unknown Exits Taken 2 | 1 1 . . . . . Scrap Searched . | . . . . . . . Spaces Dug 1 | . . . . . 1 . Terrain Destroyed 111 | . . 30 52 28 1 . Melee 1 | . . . . . 1 . Projectile . | . . . . . . . AOE 110 | . . 30 52 28 . . Terrain Rammed . | . . . . . . . Walls Destroyed . | . . . . . . . Machines Disabled . | . . . . . . . Actions | -11 -10 -9 -8 -8 -8 -8 --------- Run | Yrd Mat Mat Mat Gar Mat Gar Total 6267 | 54 371 1346 845 2630 308 713 Wait 643 | . 12 138 125 186 81 101 Move 4898 | 46 315 1075 602 2147 211 502 Hop . | . . . . . . . Pick Up 72 | 2 9 10 12 34 . 5 Fast Attach 35 | 6 . 8 8 12 1 . Attach 32 | . 1 4 10 10 2 5 Detach 12 | . . . 4 2 4 2 Swap 52 | . 5 9 5 25 . 8 Drop 70 | . 4 13 9 42 1 1 Fire 294 | . 25 89 70 80 5 25 Melee 44 | . . . . 37 3 4 Ram . | . . . . . . . Kick . | . . . . . . . Crush . | . . . . . . . Escape Stasis 78 | . . . . 31 . 47 Rewire 37 | . . . . 24 . 13 Trap . | . . . . . . . Miscellaneous . | . . . . . . . Route ------- -11/Scrapyard -10/Materials (discovered 4 exits: *Mat x2 / [*Min x2]) -9/Materials (discovered 3 exits: *Mat x2 / [*Min]) -8/Materials -8/Garrison (discovered 3 exits: *Mat x3) -8/Materials -8/Garrison (discovered 2 exits: [*Fac x2]) History --------- Turn | Location | Event 8 | -11/Scrapyard | Discovered new exit (range 14) 75 | -11/Scrapyard | Entered Materials 220 | -10/Materials | Discovered new exit (range 12) 304 | -10/Materials | Build established: Mutant 324 | -10/Materials | Discovered new exit (range 8) 516 | -10/Materials | Discovered new exit (range 5) 551 | -10/Materials | Discovered new exit (range 3) 686 | -10/Materials | Entered another Materials area 686 | -9/Materials | Accompanied by 1 ally 686 | -9/Materials | Evolved 2 slots: Utility x2 816 | -9/Materials | Repaired Particle Gun 1492 | -9/Materials | Destroyed 7 combat bots 1500 | -9/Materials | Lost 3 parts (1p1u1w) 1591 | -9/Materials | Discovered new exit (range 8) 1630 | -9/Materials | Identified exit to Materials 1843 | -9/Materials | Discovered new exit (range 12) 2375 | -9/Materials | Discovered exit to Materials (range 15) 2848 | -9/Materials | Entered another Materials area 2848 | -8/Materials | Evolved 2 slots: Propulsion x1, Utility x1 3303 | -8/Materials | Destroyed 9 combat bots 3303 | -8/Materials | Lost 4 parts (1u3w) 3961 | -8/Materials | Build established: Scavenger-Mutant 4278 | -8/Materials | Identified exit to Garrison 4278 | -8/Materials | Entered Garrison 4278 | -8/Garrison | Accompanied by 1 ally 4463 | -8/Garrison | Garrison Relay disabled 4730 | -8/Garrison | Triggered checkpoint 4827 | -8/Garrison | Build established: Hacker-Mutant 4838 | -8/Garrison | Triggered checkpoint 4940 | -8/Garrison | Triggered checkpoint 4951 | -8/Garrison | Installed Relay Interface Framework 4984 | -8/Garrison | Discovered new exit (range 8) 5015 | -8/Garrison | Garrison Relay disabled 5180 | -8/Garrison | Triggered checkpoint 5183 | -8/Garrison | Core integrity fell below 50% 5768 | -8/Garrison | Build established: Scavenger-Mutant 5945 | -8/Garrison | Lost 3 allies 6263 | -8/Garrison | Build established: Bothacker-Mutant 6370 | -8/Garrison | Triggered checkpoint 6402 | -8/Garrison | Triggered checkpoint 6442 | -8/Garrison | Garrison Relay disabled 6966 | -8/Garrison | Garrison Relay disabled 7026 | -8/Garrison | Triggered checkpoint 7070 | -8/Garrison | Discovered new exit (range 12) 7157 | -8/Garrison | Discovered new exit (range 47) 7157 | -8/Garrison | Discovered new exit (range 32) 7157 | -8/Garrison | Discovered new exit (range 74) 7193 | -8/Garrison | Core integrity fell below 20% 7258 | -8/Garrison | Learned Materials security intel 7398 | -8/Garrison | Garrison Relay disabled 7469 | -8/Garrison | Entered Materials 7469 | -8/Materials | Accompanied by 5 allies 7743 | -8/Materials | Identified exit to Garrison 7777 | -8/Materials | Entered Garrison 7777 | -8/Garrison | Accompanied by 7 allies 7789 | -8/Garrison | Expanded RIF knowledge: Alert ID Control 7853 | -8/Garrison | Triggered checkpoint 8070 | -8/Garrison | Hacking Suite fried by hacking feedback 8177 | -8/Garrison | Triggered checkpoint 8241 | -8/Garrison | Triggered checkpoint 8287 | -8/Garrison | Garrison Relay disabled 8355 | -8/Garrison | Discovered new exit (range 10) 8507 | -8/Garrison | Discovered new exit (range 10) 8537 | -8/Garrison | Garrison Relay disabled 8541 | -8/Garrison | Garrison Relay disabled 8544 | -8/Garrison | Destroyed by P-60 Hacker with Shock Rifle Last Messages --------------- relay unit. 08537_ Relay Coupler [NC] tumbles out of relay unit. 08537_ Relay Coupler [Swarmer] tumbles out of relay unit. 08537_ YS-6JL(h) destroyed. 08538_ Relay Coupler [Grunt] destroyed. 08538_ P-60 Hacker fails to hack Trooper 3e. 08541_ Garrison Relay disabled. 08541_ Relay Coupler [Behemoth] tumbles out of relay unit. 08541_ Relay Coupler [Sentry] tumbles out of relay unit. 08541_ Relay Coupler [Demolisher] tumbles out of relay unit. 08541_ Relay Coupler [NC] tumbles out of relay unit. 08542_ P-60 Hacker resets P-60 Hacker, system corruption cleaned. Map ----- +----------------------------------------------------+ | ?????????????????# #?????? | | ???????????????????#####"""### ############?????? | | ?????????????????????????????# #????????????????? | | ?????????????????????????????# #????????????????? | | ?????????????????????????????# #????????????????? | | ?????????????????????????????# #????????????????? | | ?????????????????????????????# #????????????????? | | ?????????????????????????????# #????????????????? | | ?????????????????????????????# #????????????????? | | ?????????????????????????????# #????????????????? | | ?????????????????????????????# #????????????????? | | ????????????????????########## #????????????????? | | ????????????????????# #????????????????? | | ????????????????????# #????????????????? | | ????????????????????# < ##+######????????????????? | | ????????????????????# ## #?????????????????????? | | ????????????????????###### #?????????????????????? | | ???????????????????????### #?????????????????????? | | ???????????????????????# g#?????????????????????? | | ???????????????????????# = #?????????????????????? | | ???????????????????###?#!%]#?###?????????????????? | | ???????????????????#"" p + ""#?????????????????? | | ???????????????????#" # p# "#?????????????????? | | ???????????????????#" " " "#?????????????????? | | ???????????????????#"! ! " "#?????????????????? | | ???????????????????# !! !@ " "#?????????????????? | | ???????????????????##!!"! " ##?????????????????? | | ????????????????????# ""p p"" #??????????????????? | | ????????????????????# # # #??????????????????? | | ????????????????????# + + #??????????????????? | | ????????????????????# #"""""# #??????????????????? | | ????????????????????###"""""###??????????????????? | | ??????????????????????#######????????????????????? | | ?????????????????????????????????????????????????? | | ?????????????????????????????????????????????????? | | | | | | | | | | | | | | | | | | | | | | | | | | | | | | | +----------------------------------------------------+ Best States ------------- Heat Dissipation 58 Energy Generation 18 Energy Capacity 310 Matter Stores 300 Matter Capacity 300 Sight Range 16 Terrain Scan Density 10 Base Temperature (-) 100 Evasion (%) 55 Targeting Accuracy 8 Recoil Reduction 3 Offensive Hacking 20 Relay Coupler Types 2 Relay Coupler Value 29 Item Schematics ----------------- Prc. Beam Rifle | -8/Materials | Scanalyzed System Restoration Module | -8/Materials | Scanalyzed Robot Schematics ------------------ None Fabricated ------------ Nothing Repaired ---------- Particle Gun | 60% | -9/Materials Studied --------- Rocket Launcher | -9/Materials | Hacked Particle Gun | -9/Materials | Hacked Imp. Treads | -8/Materials | Hacked Lgt. Treads | -8/Materials | Hacked Lgt. Deuterium Engine | -8/Materials | Hacked Alien Tech Used ----------------- None Achievements -------------- Oppo Buddy Challenges ------------ None Game ------ Seed MicroThunderThruster Manual? 0 Play Time 00:53:28 Cumulative 152.5 hours Start 2026.09.22 @ 02:12:17 End 2026.09.22 @ 03:05:55 Sessions 1 Manual Loads 0 Difficulty Rogue Special Mode None Game No. 168 Rogue 168 Adventurer 0 Explorer 0 Win Type - Total 0 Types 0/0/0/0/0/0/0/0/0/0 Lore% 57 Gallery% 60 Achievement% 46 Wizard Run 0 Options --------- Layout 1 ASCII 0 Keyboard 0 Movement Mouse Keybinds 0 Fullscreen 2 Font 24/Smallcaps Map View 50x35 Zoom Use 0% Tactical HUD 1 Map Filters NONE Filters NONE Steam 1 RUN: 4d329890-4311-4897-bcf9-6809e66ca588